[Event "Early-Titled-Tuesday-Blitz-March-19-2024"]
[Site "Chess.com"]
[Date "2024.03.19"]
[Round "7"]
[White "DavidGavrilescu18"]
[Black "malakismayil"]
[Result "1-0"]
[WhiteElo "2785"]
[BlackElo "2531"]
[TimeControl "180+1"]
[EndTime "9:18:05 PDT"]
[Termination "DavidGavrilescu18 won on time"]

1. e4 {[%clk 0:03:00.9]} 1... e5 {[%clk 0:02:59.9]} 2. Bc4 {[%clk 0:02:44.4]}
2... Nc6 {[%clk 0:02:58.1]} 3. Nc3 {[%clk 0:02:45]} 3... Nf6 {[%clk 0:02:56.6]}
4. d3 {[%clk 0:02:45.5]} 4... Bc5 {[%clk 0:02:56.4]} 5. f4 {[%clk 0:02:45.5]}
5... d6 {[%clk 0:02:56.4]} 6. Nf3 {[%clk 0:02:45.8]} 6... a6 {[%clk 0:02:53.3]}
7. f5 {[%clk 0:02:45.7]} 7... h6 {[%clk 0:02:52.3]} 8. Qe2 {[%clk 0:02:42]} 8...
b5 {[%clk 0:02:26.2]} 9. Bb3 {[%clk 0:02:39.4]} 9... Bb7 {[%clk 0:02:20.1]} 10.
Be3 {[%clk 0:02:39]} 10... Nd4 {[%clk 0:02:04.6]} 11. Qd2 {[%clk 0:02:33.5]}
11... Nxb3 {[%clk 0:01:57.9]} 12. axb3 {[%clk 0:02:31.9]} 12... Bxe3 {[%clk
0:01:57.9]} 13. Qxe3 {[%clk 0:02:32.8]} 13... c5 {[%clk 0:01:58.1]} 14. Rg1
{[%clk 0:02:29.6]} 14... Nh7 {[%clk 0:01:43.6]} 15. h4 {[%clk 0:02:18.8]} 15...
Nf6 {[%clk 0:01:09.7]} 16. g4 {[%clk 0:02:18.5]} 16... Qd7 {[%clk 0:01:05]} 17.
Ne2 {[%clk 0:02:09.6]} 17... h5 {[%clk 0:01:04.1]} 18. g5 {[%clk 0:02:04.1]}
18... Ng4 {[%clk 0:01:03.8]} 19. Qd2 {[%clk 0:02:04.7]} 19... g6 {[%clk
0:01:02.3]} 20. Ng3 {[%clk 0:02:04.8]} 20... d5 {[%clk 0:00:42.5]} 21. Qc3
{[%clk 0:01:59.2]} 21... d4 {[%clk 0:00:42.6]} 22. Qa5 {[%clk 0:01:49.4]} 22...
Ne3 {[%clk 0:00:36.5]} 23. Kd2 {[%clk 0:01:43.8]} 23... gxf5 {[%clk 0:00:25.2]}
24. Qb6 {[%clk 0:01:44]} 24... Qe7 {[%clk 0:00:10.6]} 25. Rgf1 {[%clk
0:00:54.9]} 25... Nxf1+ {[%clk 0:00:09.1]} 26. Rxf1 {[%clk 0:00:55.8]} 26...
fxe4 {[%clk 0:00:06.1]} 27. Nf5 {[%clk 0:00:54.8]} 27... Qd7 {[%clk 0:00:02.5]}
28. Nxe5 {[%clk 0:00:53.8]} 28... e3+ {[%clk 0:00:01.9]} 29. Ke2 {[%clk
0:00:53.1]} 29... Qe6 {[%clk 0:00:02.7]} 30. Ng7+ {[%clk 0:00:52.8]} 30... Ke7
{[%clk 0:00:01]} 31. Nxe6 {[%clk 0:00:53.7]} 1-0

[Event "Early-Titled-Tuesday-Blitz-March-19-2024"]
[Site "Chess.com"]
[Date "2024.03.19"]
[Round "7"]
[White "Carlos-Godoy"]
[Black "Barbix1"]
[Result "0-1"]
[WhiteElo "2085"]
[BlackElo "2282"]
[TimeControl "180+1"]
[EndTime "9:18:05 PDT"]
[Termination "Barbix1 won by checkmate"]

1. e4 {[%clk 0:03:00.9]} 1... c5 {[%clk 0:02:55.5]} 2. Nf3 {[%clk 0:03:00]} 2...
g6 {[%clk 0:02:54.6]} 3. d4 {[%clk 0:02:57.7]} 3... cxd4 {[%clk 0:02:54]} 4.
Nxd4 {[%clk 0:02:58.2]} 4... Nc6 {[%clk 0:02:53.1]} 5. c4 {[%clk 0:02:54.1]}
5... Nf6 {[%clk 0:02:52.7]} 6. Nc3 {[%clk 0:02:52.7]} 6... Nxd4 {[%clk
0:02:51.5]} 7. Qxd4 {[%clk 0:02:51.7]} 7... d6 {[%clk 0:02:51.8]} 8. Bg5 {[%clk
0:02:41.9]} 8... Bg7 {[%clk 0:02:49.1]} 9. Qd2 {[%clk 0:02:42.3]} 9... O-O
{[%clk 0:02:45.1]} 10. Be2 {[%clk 0:02:42.2]} 10... a5 {[%clk 0:02:30.7]} 11. h4
{[%clk 0:02:40.6]} 11... a4 {[%clk 0:02:25.5]} 12. h5 {[%clk 0:02:40.2]} 12...
Be6 {[%clk 0:02:14.2]} 13. hxg6 {[%clk 0:02:36.7]} 13... fxg6 {[%clk 0:02:09]}
14. Nd5 {[%clk 0:02:33.6]} 14... Bxd5 {[%clk 0:01:56.9]} 15. Bxf6 {[%clk
0:02:16.9]} 15... Rxf6 {[%clk 0:01:51.6]} 16. Qxd5+ {[%clk 0:02:16.6]} 16... e6
{[%clk 0:01:42]} 17. Qd2 {[%clk 0:02:13.7]} 17... Qb6 {[%clk 0:01:35.7]} 18. O-O
{[%clk 0:02:09.8]} 18... Raf8 {[%clk 0:01:33.8]} 19. Bf3 {[%clk 0:02:03]} 19...
Rf4 {[%clk 0:01:09.9]} 20. Rad1 {[%clk 0:02:01.3]} 20... Be5 {[%clk 0:01:04.7]}
21. Qc2 {[%clk 0:01:54.9]} 21... Rh4 {[%clk 0:01:00.2]} 22. g3 {[%clk
0:01:48.1]} 22... Bxg3 {[%clk 0:00:58.7]} 23. Kg2 {[%clk 0:01:45.5]} 23... Be5
{[%clk 0:00:49.5]} 24. Qxa4 {[%clk 0:01:39.9]} 24... Qd8 {[%clk 0:00:48]} 25.
Rh1 {[%clk 0:01:08.1]} 25... Qg5+ {[%clk 0:00:41.9]} 26. Kf1 {[%clk 0:01:08.7]}
26... Rxf3 {[%clk 0:00:35.1]} 27. Qe8+ {[%clk 0:01:07.8]} 27... Kg7 {[%clk
0:00:34.6]} 28. Rg1 {[%clk 0:00:53]} 28... Rxf2+ {[%clk 0:00:28.9]} 29. Kxf2
{[%clk 0:00:50.9]} 29... Rh2+ {[%clk 0:00:23.6]} 30. Kf1 {[%clk 0:00:38.5]}
30... Qf4+ {[%clk 0:00:21.7]} 31. Ke1 {[%clk 0:00:38.3]} 31... Qf2# {[%clk
0:00:22.3]} 0-1

[Event "Early-Titled-Tuesday-Blitz-March-19-2024"]
[Site "Chess.com"]
[Date "2024.03.19"]
[Round "7"]
[White "Pikku_Myy73"]
[Black "Laico"]
[Result "0-1"]
[WhiteElo "2268"]
[BlackElo "2419"]
[TimeControl "180+1"]
[EndTime "9:18:10 PDT"]
[Termination "Laico won by resignation"]

1. d4 {[%clk 0:03:00.9]} 1... e6 {[%clk 0:02:58.8]} 2. c4 {[%clk 0:03:01.1]}
2... f5 {[%clk 0:02:58.8]} 3. Nf3 {[%clk 0:02:59.9]} 3... b6 {[%clk 0:02:58.9]}
4. g3 {[%clk 0:03:00]} 4... Bb7 {[%clk 0:02:59.1]} 5. Bg2 {[%clk 0:03:00.6]}
5... Nf6 {[%clk 0:02:59.5]} 6. Nc3 {[%clk 0:02:58.8]} 6... Bb4 {[%clk
0:02:59.4]} 7. O-O {[%clk 0:02:57.6]} 7... Bxc3 {[%clk 0:02:59.7]} 8. bxc3
{[%clk 0:02:58.5]} 8... O-O {[%clk 0:03:00]} 9. Qc2 {[%clk 0:02:46.9]} 9... Be4
{[%clk 0:02:58.7]} 10. Qb3 {[%clk 0:02:46.2]} 10... Kh8 {[%clk 0:02:58]} 11. a4
{[%clk 0:02:43.9]} 11... a5 {[%clk 0:02:57.3]} 12. Bg5 {[%clk 0:02:35.5]} 12...
Qe8 {[%clk 0:02:51.8]} 13. Nd2 {[%clk 0:02:33]} 13... Bxg2 {[%clk 0:02:50.2]}
14. Kxg2 {[%clk 0:02:33.9]} 14... d6 {[%clk 0:02:49.1]} 15. Qc2 {[%clk
0:02:29.5]} 15... Nbd7 {[%clk 0:02:29]} 16. e4 {[%clk 0:02:23.3]} 16... fxe4
{[%clk 0:02:28.4]} 17. Rae1 {[%clk 0:01:53.8]} 17... Qg6 {[%clk 0:02:27.2]} 18.
Bxf6 {[%clk 0:01:52.6]} 18... Nxf6 {[%clk 0:02:28.1]} 19. Re2 {[%clk 0:01:33.6]}
19... d5 {[%clk 0:02:20.6]} 20. cxd5 {[%clk 0:01:28.8]} 20... exd5 {[%clk
0:02:21.5]} 21. c4 {[%clk 0:01:28.7]} 21... c6 {[%clk 0:02:14.4]} 22. Rb1 {[%clk
0:01:21.2]} 22... Rab8 {[%clk 0:02:11]} 23. Nf1 {[%clk 0:01:18.8]} 23... Nh5
{[%clk 0:02:08.1]} 24. Kh1 {[%clk 0:01:11.4]} 24... dxc4 {[%clk 0:01:53.2]} 25.
Nd2 {[%clk 0:00:44.6]} 25... Nf6 {[%clk 0:01:42.6]} 26. Qxc4 {[%clk 0:00:37]}
26... Ng4 {[%clk 0:01:19.2]} 27. Nxe4 {[%clk 0:00:18.8]} 27... Nxf2+ {[%clk
0:01:18.3]} 28. Nxf2 {[%clk 0:00:17]} 28... Qxb1+ {[%clk 0:01:16.9]} 29. Kg2
{[%clk 0:00:17.3]} 29... Qb4 {[%clk 0:01:06.6]} 30. Qxc6 {[%clk 0:00:15.7]}
30... Qxd4 {[%clk 0:01:03.9]} 31. h4 {[%clk 0:00:15.7]} 31... Qf6 {[%clk
0:00:57.8]} 32. Qb5 {[%clk 0:00:11.6]} 32... Qf3+ {[%clk 0:00:47.6]} 33. Kh2
{[%clk 0:00:11.3]} 33... Rf5 {[%clk 0:00:47.3]} 34. Nh3 {[%clk 0:00:09.1]} 0-1

[Event "Early-Titled-Tuesday-Blitz-March-19-2024"]
[Site "Chess.com"]
[Date "2024.03.19"]
[Round "7"]
[White "DonkyDonkyDonkey"]
[Black "scarabee43"]
[Result "1-0"]
[WhiteElo "2983"]
[BlackElo "2831"]
[TimeControl "180+1"]
[EndTime "9:18:19 PDT"]
[Termination "DonkyDonkyDonkey won by checkmate"]

1. e4 {[%clk 0:03:00.9]} 1... c5 {[%clk 0:02:59.8]} 2. Nf3 {[%clk 0:03:01.1]}
2... e6 {[%clk 0:03:00.1]} 3. c3 {[%clk 0:02:50.4]} 3... d5 {[%clk 0:02:57]} 4.
e5 {[%clk 0:02:50.6]} 4... d4 {[%clk 0:02:55.4]} 5. d3 {[%clk 0:02:51.1]} 5...
Nc6 {[%clk 0:02:53.4]} 6. g3 {[%clk 0:02:51.7]} 6... Nge7 {[%clk 0:02:51.9]} 7.
Bg2 {[%clk 0:02:51.8]} 7... Ng6 {[%clk 0:02:50.8]} 8. Qe2 {[%clk 0:02:51.5]}
8... Be7 {[%clk 0:02:49.9]} 9. h4 {[%clk 0:02:50.6]} 9... h5 {[%clk 0:02:49.3]}
10. Na3 {[%clk 0:02:50.3]} 10... dxc3 {[%clk 0:02:43.4]} 11. bxc3 {[%clk
0:02:49.4]} 11... Qc7 {[%clk 0:02:43.5]} 12. Nc4 {[%clk 0:02:42.5]} 12... b5
{[%clk 0:02:41.9]} 13. Nd6+ {[%clk 0:02:29.5]} 13... Bxd6 {[%clk 0:02:42]} 14.
exd6 {[%clk 0:02:30.4]} 14... Qxd6 {[%clk 0:02:42.8]} 15. O-O {[%clk 0:02:31]}
15... Bb7 {[%clk 0:02:34.5]} 16. d4 {[%clk 0:02:29.8]} 16... cxd4 {[%clk
0:02:29.9]} 17. Qxb5 {[%clk 0:02:29.1]} 17... Qd7 {[%clk 0:02:27.2]} 18. Rb1
{[%clk 0:01:59.2]} 18... Nd8 {[%clk 0:02:25.6]} 19. Qxd7+ {[%clk 0:01:45.6]}
19... Kxd7 {[%clk 0:02:25.5]} 20. Nxd4 {[%clk 0:01:46.5]} 20... Bxg2 {[%clk
0:02:24.9]} 21. Kxg2 {[%clk 0:01:47.4]} 21... Rc8 {[%clk 0:02:24.2]} 22. Rd1
{[%clk 0:01:44.5]} 22... Ke7 {[%clk 0:02:18.8]} 23. Ba3+ {[%clk 0:01:40.8]}
23... Kf6 {[%clk 0:02:18.8]} 24. Nf3 {[%clk 0:01:31.6]} 24... Nc6 {[%clk
0:02:14.4]} 25. Rb7 {[%clk 0:01:28]} 25... Rhd8 {[%clk 0:02:13.2]} 26. Rxd8
{[%clk 0:01:25]} 26... Rxd8 {[%clk 0:02:13.1]} 27. Ng5 {[%clk 0:01:23.3]} 27...
Nge5 {[%clk 0:02:13.6]} 28. f4 {[%clk 0:01:17.8]} 28... Rd2+ {[%clk 0:02:13.8]}
29. Kf1 {[%clk 0:01:18.3]} 29... Nc4 {[%clk 0:02:05]} 30. Ne4+ {[%clk
0:01:18.6]} 30... Kg6 {[%clk 0:01:58.7]} 31. Nxd2 {[%clk 0:01:19.2]} 31... Nxd2+
{[%clk 0:01:58.3]} 32. Kg2 {[%clk 0:01:19.7]} 32... Nc4 {[%clk 0:01:56.4]} 33.
Bc5 {[%clk 0:01:18.8]} 33... a6 {[%clk 0:01:56.7]} 34. Rc7 {[%clk 0:01:17.7]}
34... N6a5 {[%clk 0:01:57.3]} 35. Bb4 {[%clk 0:01:17.5]} 35... f6 {[%clk
0:01:55]} 36. Rc5 {[%clk 0:01:17.2]} 36... Ne3+ {[%clk 0:01:55.1]} 37. Kf3
{[%clk 0:01:17.4]} 37... Nac4 {[%clk 0:01:55.9]} 38. Rc6 {[%clk 0:01:14.5]}
38... e5 {[%clk 0:01:55.5]} 39. Rxa6 {[%clk 0:01:08.2]} 39... exf4 {[%clk
0:01:55.1]} 40. gxf4 {[%clk 0:01:08.5]} 40... Nf5 {[%clk 0:01:55.6]} 41. Rc6
{[%clk 0:01:03.2]} 41... Nxh4+ {[%clk 0:01:55.9]} 42. Ke2 {[%clk 0:00:58.5]}
42... Nb2 {[%clk 0:01:54.4]} 43. Ba3 {[%clk 0:00:56.8]} 43... Na4 {[%clk
0:01:54]} 44. Kd3 {[%clk 0:00:56.1]} 44... Ng2 {[%clk 0:01:52]} 45. Bc1 {[%clk
0:00:52.7]} 45... h4 {[%clk 0:01:49.9]} 46. Ke2 {[%clk 0:00:52.2]} 46... h3
{[%clk 0:01:49.2]} 47. Kf3 {[%clk 0:00:51.7]} 47... Ne1+ {[%clk 0:01:40.4]} 48.
Kg3 {[%clk 0:00:51.9]} 48... Nd3 {[%clk 0:01:40.9]} 49. Be3 {[%clk 0:00:50.9]}
49... Kf5 {[%clk 0:01:40.9]} 50. Kxh3 {[%clk 0:00:50.9]} 50... Nab2 {[%clk
0:01:39.3]} 51. Rc7 {[%clk 0:00:47.4]} 51... Nd1 {[%clk 0:01:37.5]} 52. Bd2
{[%clk 0:00:45.9]} 52... N1f2+ {[%clk 0:01:36.7]} 53. Kg2 {[%clk 0:00:45.9]}
53... Ne4 {[%clk 0:01:37.2]} 54. Be3 {[%clk 0:00:45.1]} 54... g5 {[%clk
0:01:26.7]} 55. fxg5 {[%clk 0:00:46]} 55... fxg5 {[%clk 0:01:27.2]} 56. a4
{[%clk 0:00:45.6]} 56... g4 {[%clk 0:01:25.5]} 57. a5 {[%clk 0:00:46.2]} 57...
Ne1+ {[%clk 0:01:23.4]} 58. Kf1 {[%clk 0:00:46]} 58... Nc2 {[%clk 0:01:23.5]}
59. Bg1 {[%clk 0:00:44.9]} 59... Nd2+ {[%clk 0:01:23]} 60. Ke2 {[%clk
0:00:44.2]} 60... Nf3 {[%clk 0:01:23.6]} 61. Bf2 {[%clk 0:00:44.4]} 61... Na3
{[%clk 0:01:21.6]} 62. a6 {[%clk 0:00:44.9]} 62... Ke4 {[%clk 0:01:21]} 63. a7
{[%clk 0:00:42.9]} 63... Nb5 {[%clk 0:01:21.6]} 64. a8=Q+ {[%clk 0:00:43.2]}
64... Kf4 {[%clk 0:01:21.6]} 65. Qf8+ {[%clk 0:00:42.8]} 65... Ke4 {[%clk
0:01:22]} 66. Rc4+ {[%clk 0:00:43]} 66... Kd5 {[%clk 0:01:22.2]} 67. Rc5+ {[%clk
0:00:43.1]} 67... Ke4 {[%clk 0:01:22.1]} 68. Qf5# {[%clk 0:00:40.1]} 1-0

[Event "Early-Titled-Tuesday-Blitz-March-19-2024"]
[Site "Chess.com"]
[Date "2024.03.19"]
[Round "7"]
[White "Leo_C"]
[Black "AwareIdea"]
[Result "1-0"]
[WhiteElo "2649"]
[BlackElo "2511"]
[TimeControl "180+1"]
[EndTime "9:18:19 PDT"]
[Termination "Leo_C won on time"]

1. d4 {[%clk 0:03:00.3]} 1... Nf6 {[%clk 0:02:54]} 2. Bf4 {[%clk 0:03:00.2]}
2... d5 {[%clk 0:02:52.8]} 3. e3 {[%clk 0:03:00.2]} 3... c5 {[%clk 0:02:51.7]}
4. Nf3 {[%clk 0:03:00.3]} 4... Nc6 {[%clk 0:02:47.6]} 5. Nbd2 {[%clk 0:03:00.4]}
5... cxd4 {[%clk 0:02:40.8]} 6. exd4 {[%clk 0:03:01.3]} 6... Bf5 {[%clk
0:02:41.1]} 7. Bb5 {[%clk 0:02:59.5]} 7... Qb6 {[%clk 0:02:39.5]} 8. c4 {[%clk
0:02:55.8]} 8... a6 {[%clk 0:02:35.4]} 9. Bxc6+ {[%clk 0:02:47.7]} 9... bxc6
{[%clk 0:02:34.9]} 10. O-O {[%clk 0:02:38.7]} 10... e6 {[%clk 0:02:34.5]} 11. c5
{[%clk 0:02:36.7]} 11... Qb7 {[%clk 0:02:32.5]} 12. Qb3 {[%clk 0:02:26.7]} 12...
Ra7 {[%clk 0:02:28]} 13. Ne5 {[%clk 0:02:22.5]} 13... Qa8 {[%clk 0:01:01.8]} 14.
Qa4 {[%clk 0:02:17.4]} 14... Rc7 {[%clk 0:00:54.9]} 15. Ng6 {[%clk 0:01:57.3]}
15... hxg6 {[%clk 0:00:54.4]} 16. Bxc7 {[%clk 0:01:57.3]} 16... Kd7 {[%clk
0:00:48.9]} 17. Be5 {[%clk 0:01:53.3]} 17... Ng4 {[%clk 0:00:47.9]} 18. Bg3
{[%clk 0:01:45.3]} 18... Be7 {[%clk 0:00:35.3]} 19. h3 {[%clk 0:01:44.6]} 19...
Nf6 {[%clk 0:00:35.2]} 20. Nf3 {[%clk 0:01:40.2]} 20... Rc8 {[%clk 0:00:10.9]}
21. Ne5+ {[%clk 0:01:33.9]} 21... Ke8 {[%clk 0:00:11.2]} 22. f3 {[%clk
0:01:33.2]} 22... Nd7 {[%clk 0:00:09.7]} 23. Rfe1 {[%clk 0:01:12.7]} 23... Nxe5
{[%clk 0:00:09.6]} 24. Bxe5 {[%clk 0:01:13.2]} 24... f6 {[%clk 0:00:08.5]} 25.
Bh2 {[%clk 0:01:13.2]} 25... Kf7 {[%clk 0:00:07.7]} 26. Re3 {[%clk 0:01:13]}
26... g5 {[%clk 0:00:07.4]} 27. Rae1 {[%clk 0:01:11.7]} 27... e5 {[%clk
0:00:06.8]} 28. Bxe5 {[%clk 0:01:05.4]} 28... Qb7 {[%clk 0:00:02]} 29. Bd6
{[%clk 0:00:56.9]} 29... Bd8 {[%clk 0:00:02.3]} 30. Re7+ {[%clk 0:00:52.1]}
30... Bxe7 {[%clk 0:00:02.8]} 31. Rxe7+ {[%clk 0:00:53]} 31... Qxe7 {[%clk
0:00:03]} 32. Bxe7 {[%clk 0:00:53.9]} 32... Kxe7 {[%clk 0:00:03.9]} 33. Qxa6
{[%clk 0:00:54.4]} 33... Rc7 {[%clk 0:00:03.5]} 34. b4 {[%clk 0:00:52.8]} 34...
Kd7 {[%clk 0:00:01.7]} 35. a4 {[%clk 0:00:52.1]} 35... Bc2 {[%clk 0:00:01.1]}
36. b5 {[%clk 0:00:49]} 1-0

[Event "Early-Titled-Tuesday-Blitz-March-19-2024"]
[Site "Chess.com"]
[Date "2024.03.19"]
[Round "7"]
[White "Matols"]
[Black "ChainedDowntohell"]
[Result "1-0"]
[WhiteElo "2363"]
[BlackElo "2505"]
[TimeControl "180+1"]
[EndTime "9:18:22 PDT"]
[Termination "Matols won on time"]

1. d4 {[%clk 0:03:00]} 1... Nf6 {[%clk 0:02:53.2]} 2. c4 {[%clk 0:02:59.4]} 2...
e6 {[%clk 0:02:53.4]} 3. g3 {[%clk 0:02:59.3]} 3... c5 {[%clk 0:02:52]} 4. d5
{[%clk 0:02:59.1]} 4... exd5 {[%clk 0:02:52]} 5. cxd5 {[%clk 0:03:00]} 5... d6
{[%clk 0:02:52.2]} 6. Nc3 {[%clk 0:03:00.3]} 6... g6 {[%clk 0:02:51.7]} 7. Bg2
{[%clk 0:03:00.2]} 7... Bg7 {[%clk 0:02:51.3]} 8. Nf3 {[%clk 0:03:00.5]} 8...
O-O {[%clk 0:02:47.7]} 9. O-O {[%clk 0:03:00.8]} 9... Re8 {[%clk 0:02:42.5]} 10.
h3 {[%clk 0:02:58.2]} 10... Bf5 {[%clk 0:02:25.8]} 11. g4 {[%clk 0:02:54.5]}
11... Be4 {[%clk 0:02:23.5]} 12. Bf4 {[%clk 0:02:49.3]} 12... h5 {[%clk
0:02:09.7]} 13. g5 {[%clk 0:02:44.6]} 13... Nh7 {[%clk 0:02:04]} 14. h4 {[%clk
0:02:43.1]} 14... a6 {[%clk 0:01:57.7]} 15. a4 {[%clk 0:02:35.8]} 15... f6
{[%clk 0:01:45.8]} 16. Nxe4 {[%clk 0:02:05.1]} 16... Rxe4 {[%clk 0:01:45.1]} 17.
Qd2 {[%clk 0:02:04.4]} 17... fxg5 {[%clk 0:01:39.7]} 18. Nxg5 {[%clk 0:02:03.2]}
18... Nxg5 {[%clk 0:01:20.1]} 19. Bxg5 {[%clk 0:02:01.6]} 19... Qe8 {[%clk
0:01:20.2]} 20. Bxe4 {[%clk 0:01:56]} 20... Qxe4 {[%clk 0:01:21.1]} 21. f3
{[%clk 0:01:49.9]} 21... Qe5 {[%clk 0:00:43.9]} 22. e4 {[%clk 0:01:39.9]} 22...
Nd7 {[%clk 0:00:40.9]} 23. Rab1 {[%clk 0:01:30.8]} 23... Rf8 {[%clk 0:00:37.5]}
24. Qg2 {[%clk 0:01:27.9]} 24... Qd4+ {[%clk 0:00:33.9]} 25. Kh1 {[%clk
0:01:26.4]} 25... Qxa4 {[%clk 0:00:31.8]} 26. Be7 {[%clk 0:01:23]} 26... Rf7
{[%clk 0:00:30.3]} 27. Bxd6 {[%clk 0:01:22.1]} 27... Qd4 {[%clk 0:00:03.8]} 28.
Qxg6 {[%clk 0:01:18]} 28... Ne5 {[%clk 0:00:04.2]} 29. Qxh5 {[%clk 0:01:07.6]}
29... Nd3 {[%clk 0:00:04.5]} 30. Bg3 {[%clk 0:00:56.7]} 30... Qe3 {[%clk
0:00:03.1]} 31. Qg5 {[%clk 0:00:52.5]} 31... Qe2 {[%clk 0:00:01.7]} 32. Qg4
{[%clk 0:00:45.1]} 1-0

[Event "Early-Titled-Tuesday-Blitz-March-19-2024"]
[Site "Chess.com"]
[Date "2024.03.19"]
[Round "7"]
[White "Akylbek2021"]
[Black "KetiTsatsalashvili"]
[Result "0-1"]
[WhiteElo "2325"]
[BlackElo "2480"]
[TimeControl "180+1"]
[EndTime "9:18:22 PDT"]
[Termination "KetiTsatsalashvili won by resignation"]

1. d4 {[%clk 0:03:00.9]} 1... Nf6 {[%clk 0:02:59.8]} 2. Nf3 {[%clk 0:02:58.8]}
2... e6 {[%clk 0:02:58.5]} 3. c4 {[%clk 0:02:58.6]} 3... d5 {[%clk 0:02:57.7]}
4. g3 {[%clk 0:02:58]} 4... Bb4+ {[%clk 0:02:57]} 5. Bd2 {[%clk 0:02:57.2]} 5...
Be7 {[%clk 0:02:55.5]} 6. Bg2 {[%clk 0:02:57.4]} 6... O-O {[%clk 0:02:56.2]} 7.
Qc2 {[%clk 0:02:57.7]} 7... Ne4 {[%clk 0:02:54.7]} 8. O-O {[%clk 0:02:56.3]}
8... c6 {[%clk 0:02:55]} 9. Rd1 {[%clk 0:02:55.3]} 9... Nd7 {[%clk 0:02:53.1]}
10. Bf4 {[%clk 0:02:54.9]} 10... b6 {[%clk 0:02:46.3]} 11. Nbd2 {[%clk
0:02:54.3]} 11... f5 {[%clk 0:02:31.8]} 12. cxd5 {[%clk 0:02:40.5]} 12... cxd5
{[%clk 0:02:32.7]} 13. Qc6 {[%clk 0:02:33.5]} 13... Ba6 {[%clk 0:02:14.7]} 14.
Qxe6+ {[%clk 0:02:30.8]} 14... Kh8 {[%clk 0:02:15.3]} 15. e3 {[%clk 0:02:00.6]}
15... Bb7 {[%clk 0:01:48.9]} 16. Rac1 {[%clk 0:01:40]} 16... Rf6 {[%clk
0:01:41.2]} 17. Ne5 {[%clk 0:00:10]} 17... Nxe5 {[%clk 0:01:29.8]} 18. Qxe5
{[%clk 0:00:09.8]} 18... Bd6 {[%clk 0:01:29.1]} 19. Qxf6 {[%clk 0:00:03.4]}
19... Nxf6 {[%clk 0:01:27.1]} 20. Bxd6 {[%clk 0:00:02.6]} 20... Qxd6 {[%clk
0:01:28]} 21. Nf3 {[%clk 0:00:03.4]} 21... Nd7 {[%clk 0:01:25.4]} 22. Ne5 {[%clk
0:00:04.3]} 22... Nxe5 {[%clk 0:01:25.3]} 23. dxe5 {[%clk 0:00:05.1]} 23... Qxe5
{[%clk 0:01:25.7]} 24. h4 {[%clk 0:00:05.6]} 24... h6 {[%clk 0:01:25.8]} 25. h5
{[%clk 0:00:05.6]} 25... Rd8 {[%clk 0:01:25]} 26. Rd4 {[%clk 0:00:06.1]} 26...
Rd7 {[%clk 0:01:20.6]} 27. Rcd1 {[%clk 0:00:05.9]} 27... Kh7 {[%clk 0:01:19.8]}
28. a3 {[%clk 0:00:05.9]} 28... a5 {[%clk 0:01:19.6]} 29. b4 {[%clk 0:00:06.8]}
29... axb4 {[%clk 0:01:19.8]} 30. axb4 {[%clk 0:00:07.7]} 30... Bc6 {[%clk
0:01:13.9]} 31. Bf3 {[%clk 0:00:08]} 31... Rd6 {[%clk 0:01:12.9]} 32. Kg2 {[%clk
0:00:08.6]} 32... Be8 {[%clk 0:01:11.9]} 33. Rxd5 {[%clk 0:00:05.3]} 33... Rxd5
{[%clk 0:01:12]} 34. Rxd5 {[%clk 0:00:06.2]} 34... Qb2 {[%clk 0:01:02.9]} 35.
Rd4 {[%clk 0:00:04.3]} 35... Bb5 {[%clk 0:00:59.1]} 36. Rf4 {[%clk 0:00:03.5]}
36... Qb1 {[%clk 0:00:57.5]} 37. Rd4 {[%clk 0:00:03.4]} 37... Qf1+ {[%clk
0:00:56.6]} 38. Kh2 {[%clk 0:00:03.5]} 38... Qxf2+ {[%clk 0:00:57]} 39. Bg2
{[%clk 0:00:04.2]} 39... Bf1 {[%clk 0:00:54.6]} 40. Rd2 {[%clk 0:00:04.8]} 40...
Qxd2 {[%clk 0:00:54.4]} 0-1

[Event "Early-Titled-Tuesday-Blitz-March-19-2024"]
[Site "Chess.com"]
[Date "2024.03.19"]
[Round "7"]
[White "Matibar"]
[Black "SARGISMV"]
[Result "0-1"]
[WhiteElo "2768"]
[BlackElo "2514"]
[TimeControl "180+1"]
[EndTime "9:18:25 PDT"]
[Termination "SARGISMV won by resignation"]

1. Nc3 {[%clk 0:03:00.9]} 1... Nf6 {[%clk 0:02:39.4]} 2. e4 {[%clk 0:02:59.7]}
2... d5 {[%clk 0:02:36.5]} 3. exd5 {[%clk 0:02:59.4]} 3... Nxd5 {[%clk
0:02:36.4]} 4. g3 {[%clk 0:02:56.8]} 4... Nxc3 {[%clk 0:02:34.7]} 5. bxc3 {[%clk
0:02:56.2]} 5... e5 {[%clk 0:02:24.4]} 6. Bg2 {[%clk 0:02:55.3]} 6... Bc5 {[%clk
0:02:21.1]} 7. d3 {[%clk 0:02:53.2]} 7... O-O {[%clk 0:02:20.5]} 8. Nf3 {[%clk
0:02:53.3]} 8... Re8 {[%clk 0:02:18.2]} 9. O-O {[%clk 0:02:52.3]} 9... Nc6
{[%clk 0:02:14]} 10. Rb1 {[%clk 0:02:38.8]} 10... Bb6 {[%clk 0:02:03.3]} 11. Ng5
{[%clk 0:02:34.1]} 11... h6 {[%clk 0:01:57.5]} 12. Ne4 {[%clk 0:02:34]} 12...
Be6 {[%clk 0:01:55.2]} 13. c4 {[%clk 0:02:30.5]} 13... f5 {[%clk 0:01:21.3]} 14.
Nc3 {[%clk 0:02:30]} 14... e4 {[%clk 0:01:06.1]} 15. dxe4 {[%clk 0:02:04.1]}
15... Bxc4 {[%clk 0:01:05.7]} 16. exf5 {[%clk 0:02:04.5]} 16... Bxf1 {[%clk
0:00:57.7]} 17. Qxf1 {[%clk 0:02:05.4]} 17... Qf6 {[%clk 0:00:49.5]} 18. Nd5
{[%clk 0:01:14.9]} 18... Qxf5 {[%clk 0:00:47.4]} 19. Be3 {[%clk 0:01:15.5]}
19... Rad8 {[%clk 0:00:41.9]} 20. c4 {[%clk 0:01:15.1]} 20... Ne5 {[%clk
0:00:28.9]} 21. c5 {[%clk 0:01:04.3]} 21... Nf3+ {[%clk 0:00:28.4]} 22. Bxf3
{[%clk 0:01:03.9]} 22... Qxf3 {[%clk 0:00:27.8]} 23. cxb6 {[%clk 0:01:01.9]}
23... Qxd5 {[%clk 0:00:20.5]} 24. bxc7 {[%clk 0:00:58.6]} 24... Rd7 {[%clk
0:00:18.4]} 25. Bxa7 {[%clk 0:00:29.2]} 25... Rxc7 {[%clk 0:00:18.5]} 26. a4
{[%clk 0:00:29]} 26... Rc2 {[%clk 0:00:17.5]} 27. a5 {[%clk 0:00:27.1]} 27...
Qxa5 {[%clk 0:00:14.4]} 28. Be3 {[%clk 0:00:22]} 28... Qd5 {[%clk 0:00:13.5]}
29. Qg2 {[%clk 0:00:20.4]} 29... Qxg2+ {[%clk 0:00:13.2]} 30. Kxg2 {[%clk
0:00:21.3]} 30... Rxe3 {[%clk 0:00:13.1]} 0-1